Cogmind - Beta 13 @@@ ROGUE MODE // 2024.08.05 @ 14:42:16 Player: OctagonalPrism Result: Destroyed by L-31 Rogue with Katana Performance ------------- Evolutions (2) 1000 Regions Visited (5) 1000 Robots Destroyed (93) 465 Value Destroyed (2554) 2554 Prototype IDs (3) 60 Alien Tech Used (0) 0 Bonus (102) 102 TOTAL SCORE: 5181 Bonus ------- High Alert Combat Kills 233 Follower Combat Kills 33 Friendly Fire -164 Cogmind --------- Core Integrity 0/550 Matter 290/300 Energy 100/100 System Corruption 0% Temperature Cool (0) Movement Core (150) Ox2 Location -8/Storage Parts ------- > --- POWER (1) -------- (None) > --- PROPULSION (2) --- (None) > --- UTILITY (6) ------ Improved Heat Sink Small Storage Unit Salvage Targeting Computer Hacking Suite Hacking Suite Hacking Suite > --- WEAPON (2) ------- Mini Grenade Launcher Katana > --- INVENTORY (8) ---- Deuterium Engine Light Nuclear Core Armored Wheel Medium Armor Plating Particle Gun Peak State ------------ > --- POWER ------------ Cooled Ion Engine > --- PROPULSION ------- Armored Wheel Armored Wheel > --- UTILITY ---------- Improved Heat Sink Small Storage Unit Salvage Targeting Computer Hacking Suite Hacking Suite Hacking Suite > --- WEAPON ----------- Particle Gun Heavy Assault Rifle > --- INVENTORY -------- Deuterium Engine Light Nuclear Core Armored Wheel Medium Armor Plating Mini Grenade Launcher Katana [Rating: 27] Favorites ----------- Power Ion Engine Engine Ion Engine Power Core Light Nuclear Core Propulsion Improved Treads Treads Improved Treads Wheel Armored Wheel Utility Small Storage Unit Device Improved Terrain Scanner Storage Small Storage Unit Processor Terrain Scan Processor Hackware Hacking Suite Protection Hardened Light Armor Plating Weapon Heavy Assault Rifle Energy Gun Heavy EM Pulse Gun Ballistic Gun Heavy Assault Rifle Launcher Mini Grenade Launcher Impact Weapon Mace Slashing Weapon Katana Build | -11 -10 -9 -9 -8 -8 ------- Run | Yrd Mat Mat Min Mat Sto Slots Evolved 4 | . . 2 . 2 . Power . | . . . . . . Propulsion . | . . . . . . Utility 4 | . . 2 . 2 . Weapon . | . . . . . . Parts Attached 73 | 6 7 10 14 18 18 Power 12 | 1 1 1 2 3 4 Engine 10 | 1 1 1 2 2 3 Core 2 | . . . . 1 1 Reactor . | . . . . . . Propulsion 13 | 2 2 . 4 4 1 Treads 8 | 2 2 . 2 2 . Leg . | . . . . . . Wheel 5 | . . . 2 2 1 Hover . | . . . . . . Flight . | . . . . . . Utility 18 | 1 2 5 2 3 5 Device 5 | . 1 1 2 . 1 Storage 2 | 1 . 1 . . . Processor 3 | . . 1 . 1 1 Hackware 3 | . . . . 1 2 Protection 5 | . 1 2 . 1 1 Artifact . | . . . . . . Weapon 30 | 2 2 4 6 8 8 Energy Gun 9 | . 1 1 3 3 1 Energy Cannon . | . . . . . . Ballistic Gun 15 | 2 1 3 2 4 3 Ballistic Cannon . | . . . . . . Launcher 4 | . . . 1 1 2 Special Weapon . | . . . . . . Impact Weapon 1 | . . . . . 1 Slashing Weapon 1 | . . . . . 1 Piercing Weapon . | . . . . . . Special Melee Weapon . | . . . . . . Unidentified Prototypes 3 | . . . . 1 2 Corrupted Parts 1 | . . . 1 . . System Corruption 1 | . . . 1 . . Parts Lost 24 | . 2 4 4 8 6 Power 3 | . . 1 . 1 1 Propulsion 7 | . 1 . 2 2 2 Utility 6 | . . 1 1 2 2 Weapon 8 | . 1 2 1 3 1 Highest Loss Streak 4 | . 2 2 2 4 4 To Critical Strikes . | . . . . . . Average Slot Usage (%) 91 | . 93 97 83 92 95 Engine 9 | . 14 11 10 6 3 Core 1 | . . . . 2 5 Treads 13 | . 24 22 12 3 . Wheel 4 | . . . . 12 17 Device 7 | . 2 11 10 6 4 Storage 11 | . 14 11 11 9 9 Processor 10 | . . 10 11 18 18 Hackware 3 | . . . . 8 10 Protection 9 | . 8 10 11 7 7 Energy Gun 6 | . 2 9 7 5 6 Ballistic Gun 13 | . 24 10 8 10 10 Naked Turns . | . . . . . . Heaviest Build 25 | 12 15 22 22 23 25 Greatest Support 46 | 40 46 46 46 43 24 Greatest Overweight (x) 2 | 2 . . 1 1 1 Average Overweight (x) . | . . . . . . Largest Inventory Capacity 8 | 8 8 8 8 8 8 Average Capacity 7 | 6 8 8 8 8 8 Most Carried 8 | . 7 7 8 8 8 Average Carried 5 | . 3 5 5 6 6 Final Capacity 8 | 8 8 8 8 8 8 Final Carried 7 | . 7 7 6 5 5 Class Distribution -------------------- 85% | Mutant 12% | Scavenger-Mutant Dominant Class ---------------- Mutant | -10/Materials Mutant | -9/Materials Mutant | -9/Mines Mutant | -8/Materials Scavenger-Mutant | -8/Storage Resources | -11 -10 -9 -9 -8 -8 ----------- Run | Yrd Mat Mat Min Mat Sto Matter Collected 1610 | 189 220 178 286 349 388 Remotely . | . . . . . . Salvage Created 3094 | . 404 650 409 970 661 Parts 170 | . 21 42 21 51 35 Haulers Intercepted 2 | . . 2 . . . Recyclers Shooed 3 | . . 3 . . . Parts Field Recycled . | . . . . . . Retrieved Matter . | . . . . . . Parts Self-Destructed . | . . . . . . Prevented . | . . . . . . Kills | -11 -10 -9 -9 -8 -8 ------- Run | Yrd Mat Mat Min Mat Sto Combat Hostiles Destroyed 68 | . 11 12 10 24 11 Guns 48 | . 11 10 8 10 9 AOE 19 | . . 2 2 13 2 Classes Destroyed 13 | . 4 3 2 3 1 Worker 4 | . . . . 3 1 Builder 4 | . . . . 3 1 Tunneler 5 | . 1 . 3 1 . Hauler 2 | . . 2 . . . Recycler 1 | . . 1 . . . Mechanic 1 | . . . . . 1 Operator 2 | . . . . 1 1 Watcher 7 | . 2 4 . 1 . Swarmer 19 | . 6 6 . 7 . Grunt 34 | . 5 3 6 14 6 Duelist 4 | . . . 2 . 2 Sentry 9 | . . 3 . 3 3 Assembled 2 | . . . 2 . . Thug 1 | . . . . . 1 Best Kill Streak 14 | . 3 7 3 14 5 Combat Bots Only 10 | . 3 5 3 10 2 Max Kills in Single Turn 5 | . 1 2 2 5 2 Gunslinging 1 | . . . . . 1 Exploded 3 | . . 1 2 3 1 Melee . | . . . . . . Uniques/NPCs Destroyed . | . . . . . . Combat | -11 -10 -9 -9 -8 -8 -------- Run | Yrd Mat Mat Min Mat Sto Hostile Shots Fired 363 | . 78 54 44 106 81 Missed 97 | . 13 15 11 33 25 Damage Taken 3861 | . 606 494 574 1081 1106 Core 870 | . 122 44 153 231 320 Absorbed by Shields 47 | . . . . . 47 Redirected to Shielding 60 | . 13 47 . . . Regen/Repaired (Parts) 53 | . . . . . 53 Core Remaining (%) 67 | 100 51 . 50 . . Volleys Fired 220 | . 54 30 39 52 45 Largest 2 | . 2 2 2 2 2 Hottest 88 | . 65 68 68 73 88 Shots Fired 398 | . 101 56 74 81 86 Gun 383 | . 101 56 71 73 82 Cannon . | . . . . . . Launcher 15 | . . . 3 8 4 Special . | . . . . . . Kinetic 273 | . 100 27 36 55 55 Thermal 27 | . . . . . 27 Explosive 15 | . . . 3 8 4 Electromagnetic 83 | . 1 29 35 18 . Robot Hit Streak 20 | . 8 10 9 12 20 Robot Miss Streak 6 | . 6 3 4 6 5 Penetration Max . | . . . . . . Secondary Targets 3 | . . . . 2 1 Max Gunslinging Chain 1 | . . . . 1 1 Shots Hit Robots 262 | . 64 33 41 59 65 Core Hits 172 | . 28 25 21 61 37 Critical Kills 1 | . . . . 1 . Critical Parts Destroyed 3 | . . . 1 1 1 Critical Strikes 5 | . . . 1 2 2 Burn 1 | . . . . . 1 Destroy 4 | . . . 1 2 1 Melee Attacks 5 | . . . . . 5 Impact 1 | . . . . . 1 Slashing 4 | . . . . . 4 Piercing . | . . . . . . Sneak Attacks . | . . . . . . Combat Hostiles . | . . . . . . Follow-up Attacks . | . . . . . . Damage Inflicted 6275 | . 535 955 766 2362 1657 Guns 3681 | . 535 639 595 998 914 Cannons . | . . . . . . Explosions 2500 | . . 316 171 1364 649 Melee 94 | . . . . . 94 Ramming . | . . . . . . Kinetic 2397 | . 520 286 380 627 584 Thermal 997 | . . 316 85 266 330 Explosive 1802 | . . . 86 1067 649 Electromagnetic 985 | . 15 353 215 402 . Impact . | . . . . . . Slashing 94 | . . . . . 94 Piercing . | . . . . . . Highest Corruption 3 | . . . 3 . . Average Corruption 1 | . . . 1 . . Corruption Purged . | . . . . . . Corruption Blocked . | . . . . . . Effects 4 | . . . 4 . . Message Errors 1 | . . . 1 . . Matter Fused 1 | . . . 1 . . Data Loss (minor) 1 | . . . 1 . . Misfires 1 | . . . 1 . . Overload Shots . | . . . . . . Overflow Damage 51 | . . 42 . 4 5 Projectiles . | . . . . . . Explosions 51 | . . 42 . 4 5 Melee . | . . . . . . Knockbacks . | . . . . . . Impact . | . . . . . . Kinetic . | . . . . . . Secondary . | . . . . . . Self-Inflicted Damage 328 | . . 106 25 103 94 Shots 9 | . . 3 1 3 2 Rammed . | . . . . . . Targets Rammed . | . . . . . . Kicked . | . . . . . . Crushed . | . . . . . . Highest Temperature 306 | . 24 61 104 101 306 Average Temperature 38 | . 9 28 32 25 84 Received Heat Transfer 1137 | . 153 57 150 450 327 Siege Activations . | . . . . . . Robots Corrupted 1 | . . . . 1 . Combat Hostiles 1 | . . . . 1 . Parts Fried . | . . . . . . Impact Corruptions . | . . . . . . Robots Melted . | . . . . . . Combat Hostiles . | . . . . . . Parts Melted 2 | . . . . 1 1 Heat Transferred 1488 | . . 350 50 200 888 Parts Sabotaged . | . . . . . . Parts Stolen . | . . . . . . Parts Stripped . | . . . . . . Power Chain Reactions 7 | . . 3 1 3 . Alert | -11 -10 -9 -9 -8 -8 ------- Run | Yrd Mat Mat Min Mat Sto Peak Influence 792 | . 308 419 364 792 545 Initial 211 | . . 73 163 22 211 Average 261 | . 148 236 200 482 397 Maximum Alert Level 3 | . 1 2 1 3 2 Low Security (%) 49 | 100 79 44 64 21 . Level 1 29 | . 20 39 35 2 52 Level 2 17 | . . 15 . 53 47 Level 3 3 | . . . . 23 . Level 4 . | . . . . . . Level 5 . | . . . . . . High Security . | . . . . . . Max Security . | . . . . . . Squads Dispatched 10 | . 1 . . 5 4 Investigation 3 | . 1 . . 1 1 Extermination . | . . . . . . Reinforcement 4 | . . . . 3 1 Assault 3 | . . . . 1 2 Garrison . | . . . . . . Intercept . | . . . . . . Searches Triggered . | . . . . . . Construction Impeded 1 | . . . . 1 . Haulers Reinforced . | . . . . . . Active Scanning Responses . | . . . . . . Cargo Convoy Interrupts . | . . . . . . Stealth | -11 -10 -9 -9 -8 -8 --------- Run | Yrd Mat Mat Min Mat Sto Distress Signals 6 | . 3 2 . 1 . Communications Jammed . | . . . . . . Distress Signals . | . . . . . . Times Spotted 102 | . 17 16 13 38 18 Peak Tracking Total 12 | . 5 7 3 12 4 Tactical Retreats 10 | . 3 . 3 2 2 Traps | -11 -10 -9 -9 -8 -8 ------- Run | Yrd Mat Mat Min Mat Sto Traps Triggered 5 | . 1 . . 1 3 Indirectly . | . . . . . . Trap Hack Attempts . | . . . . . . Triggered . | . . . . . . Disarmed . | . . . . . . Reprogrammed . | . . . . . . Reused . | . . . . . . Traps Extracted . | . . . . . . Installed . | . . . . . . Triggered . | . . . . . . Machines | -11 -10 -9 -9 -8 -8 ---------- Run | Yrd Mat Mat Min Mat Sto Machines Disabled 6 | . . . . 4 2 Max in Single Turn 2 | . . . . 2 1 Garrison Access 1 | . . . . . 1 Machines Repaired . | . . . . . . Machines Dismantled . | . . . . . . Machines Sabotaged . | . . . . . . Overloaded Fab Kills . | . . . . . . Hacking | -11 -10 -9 -9 -8 -8 --------- Run | Yrd Mat Mat Min Mat Sto Machines Accessed 15 | . 5 2 . 3 5 Terminals 10 | . 3 1 . 3 3 Fabricators . | . . . . . . Repair Stations 2 | . 1 . . . 1 Recycling Units 2 | . 1 1 . . . Scanalyzers . | . . . . . . Garrison Access 1 | . . . . . 1 Total Hacks 48 | . 16 6 . 11 15 Successful 30 | . 9 4 . 7 10 Failed 18 | . 7 2 . 4 5 Catastrophic 2 | . 1 . . 1 . Database Lockouts . | . . . . . . Manual 33 | . 10 5 . 11 7 Terminals 36 | . 12 3 . 11 10 Fabricators . | . . . . . . Repair Stations 4 | . 1 . . . 3 Recycling Units 6 | . 3 3 . . . Scanalyzers . | . . . . . . Garrison Access 2 | . . . . . 2 Terminal Hacks 11 | . 3 . . 4 4 Part Schematic 1 | . . . . . 1 Robot Analysis 1 | . . . . . 1 Terminal Index 3 | . 1 . . 1 1 Repair Station Index 1 | . . . . 1 . Unreport Threat 1 | . . . . 1 . Locate Traps 1 | . 1 . . . . Patrol Status 1 | . . . . 1 . Recall Assault 1 | . . . . . 1 Hauler Manifests 1 | . 1 . . . . Fabricator Hacks . | . . . . . . Repair Station Hacks 2 | . . . . . 2 Scan Component 1 | . . . . . 1 Repair 1 | . . . . . 1 Recycling Unit Hacks 2 | . 1 1 . . . Report Inventory 2 | . 1 1 . . . Scanalyzer . | . . . . . . Garrison Access Hacks 1 | . . . . . 1 Seal Access 1 | . . . . . 1 Unauthorized Hacks 14 | . 5 3 . 3 3 Terminals 10 | . 3 1 . 3 3 Botnet 7 | . 2 1 . 2 2 Disrupt 1 | . . . . . 1 Operators 2 | . 1 . . 1 . Fabricators . | . . . . . . Repair Stations . | . . . . . . Recycling Units 4 | . 2 2 . . . Monitor 2 | . 1 1 . . . Recyclers 2 | . 1 1 . . . Scanalyzers . | . . . . . . Garrison Access . | . . . . . . Data Cores Recovered . | . . . . . . Used . | . . . . . . Hacking Detections 14 | . 5 2 . 3 4 Full Trace Events 2 | . . . . 1 1 Feedback Events . | . . . . . . Feedback Blocked . | . . . . . . Robot Schematics Acquired . | . . . . . . Robots Built . | . . . . . . Authchips . | . . . . . . Time . | . . . . . . Total Robot Build Rating . | . . . . . . Part Schematics Acquired 1 | . . . . . 1 Parts Built . | . . . . . . Authchips . | . . . . . . Time . | . . . . . . Total Part Build Rating . | . . . . . . Parts Repaired 1 | . . . . . 1 Time 32 | . . . . . 32 Parts Recycled . | . . . . . . Recycled Matter . | . . . . . . Retrieved Matter . | . . . . . . Retrieved Components . | . . . . . . Parts Scanalyzed . | . . . . . . Part Schematics Acquired . | . . . . . . Parts Damaged . | . . . . . . Bothacking | -11 -10 -9 -9 -8 -8 ------------ Run | Yrd Mat Mat Min Mat Sto Used RIF Installer . | . . . . . . Robots Hacked . | . . . . . . Non-combat . | . . . . . . Combat . | . . . . . . Robot Hacks Applied . | . . . . . . Relay Couplers Released . | . . . . . . Fabnet Peak Effective % . | . . . . . . Robots Rewired . | . . . . . . Allies Hacked . | . . . . . . Hacks Repelled . | . . . . . . Allies | -11 -10 -9 -9 -8 -8 -------- Run | Yrd Mat Mat Min Mat Sto Total Allies 2 | . . . . . 2 Largest Group 2 | . . . . . 2 Highest-Rated Group 62 | . . . . . 62 Highest-Rated Ally 31 | . . . . . 31 Total Orders . | . . . . . . Ally Attacks 11 | . . . . . 11 Total Damage 82 | . . . . . 82 Kills 1 | . . . . . 1 Allies Corrupted . | . . . . . . Allies Melted . | . . . . . . Intel | -11 -10 -9 -9 -8 -8 ------- Run | Yrd Mat Mat Min Mat Sto Robot Analysis Total 1 | . . . . . 1 Derelict Logs Recovered 3 | . . . 3 . . Drone Launches . | . . . . . . Drone Recoveries . | . . . . . . Exploration | -11 -10 -9 -9 -8 -8 ------------- Run | Yrd Mat Mat Min Mat Sto Turns Passed 3087 | 61 737 363 969 448 509 Spaces Moved 1605 | 40 356 153 527 261 268 Core 11 | 11 . . . . . Treads 1089 | 29 356 153 510 41 . Legs . | . . . . . . Wheels 505 | . . . 17 220 268 Hover . | . . . . . . Flight . | . . . . . . Fastest Speed 50 | 50 160 160 95 90 90 Average Speed 138 | 132 160 160 157 104 92 Slowest Speed 160 | 160 160 160 160 160 105 Overloaded Moves . | . . . . . . Propulsion Burnouts . | . . . . . . Robots Hopped . | . . . . . . Cave-ins Triggered . | . . . . . . Exploration Rate (%) 35 | 3 48 17 81 25 41 Regions Visited 5 Branch Regions 2 Pre-discovered Areas 1 | . . . 1 . . Known Exits Taken . | . . . . . . Unknown Exits Taken 5 | 1 1 1 1 1 . Scrap Searched 1 | . . . 1 . . Spaces Dug . | . . . . . . Terrain Destroyed 153 | . . 10 39 63 41 Melee . | . . . . . . Projectile . | . . . . . . AOE 153 | . . 10 39 63 41 Terrain Rammed . | . . . . . . Walls Destroyed . | . . . . . . Machines Disabled . | . . . . . . Actions | -11 -10 -9 -9 -8 -8 --------- Run | Yrd Mat Mat Min Mat Sto Total 2085 | 45 443 218 589 354 436 Wait 114 | . 14 14 3 11 72 Move 1600 | 39 355 152 526 260 268 Hop . | . . . . . . Pick Up 23 | . 8 6 1 4 4 Fast Attach 33 | 6 3 2 8 7 7 Attach 28 | . 2 5 5 8 8 Detach 17 | . 2 1 4 3 7 Swap 12 | . 2 3 1 3 3 Drop 21 | . 3 5 2 6 5 Fire 220 | . 54 30 39 52 45 Melee 5 | . . . . . 5 Ram . | . . . . . . Kick . | . . . . . . Crush . | . . . . . . Escape Stasis 12 | . . . . . 12 Rewire . | . . . . . . Trap . | . . . . . . Miscellaneous . | . . . . . . Route ------- -11/Scrapyard -10/Materials (discovered 3 exits: *Mat / [*Min x2]) -9/Materials -9/Mines -8/Materials -8/Storage History --------- Turn | Location | Event 4 | -11/Scrapyard | Discovered new exit (range 15) 62 | -11/Scrapyard | Entered Materials 67 | -10/Materials | Discovered new exit (range 10) 301 | -10/Materials | Build established: Mutant 415 | -10/Materials | Discovered new exit (range 9) 594 | -10/Materials | Discovered new exit (range 15) 799 | -10/Materials | Entered another Materials area 799 | -9/Materials | Evolved 2 slots: Utility x2 1048 | -9/Materials | Discovered new exit (range 11) 1162 | -9/Materials | Entered Mines 1408 | -9/Mines | Found a damaged Exp. Sensor Array with a note attached 1412 | -9/Mines | Learned location of Recycling (-8) 1482 | -9/Mines | Learned 2 Materials zone layouts 1900 | -9/Mines | Assembled infested the area 2016 | -9/Mines | Learned Materials emergency access door positions 2119 | -9/Mines | Discovered new exit (range 12) 2131 | -9/Mines | Entered Materials 2131 | -8/Materials | Evolved 2 slots: Utility x2 2262 | -8/Materials | Destroyed 10 combat bots 2435 | -8/Materials | Lost 4 parts (1p2n1u) 2448 | -8/Materials | Destroyed 8 combat bots 2531 | -8/Materials | First assault squad dispatched 2564 | -8/Materials | Discovered new exit (range 10) 2579 | -8/Materials | Entered Storage 2742 | -8/Storage | Repaired Hvy. Assault Rifle 2866 | -8/Storage | Core integrity fell below 50% 3018 | -8/Storage | Build established: Scavenger-Mutant 3018 | -8/Storage | Met a pair of Derelict thieves 3073 | -8/Storage | Core integrity fell below 20% 3088 | -8/Storage | Destroyed by L-31 Rogue with Katana Last Messages --------------- 4W-FG1(g) Beamcaster severed. Hvy. Assault Rifle destroyed. Critical hit (Burn: +37). K-01 Serf collects debris. U-05 Engineer lays Concrete. M-28 Smith destroyed. U-05 Engineer destroyed. 4W-FG1(g) destroyed. L-31 Rogue destroyed. Arm. Wheel destroyed. Destroyed Arm. Wheel. K-01 Serf destroyed. G-47 Trooper destroyed. The unstable cave ceiling collapses. Acquired 36 matter. M-28 Smith repairs Hvy. Laser. K-01 Serf collects debris. Arm. Wheel destroyed. K-01 Serf collects debris. Cld. Ion Engine destroyed. Map ----- +----------------------------------------------------+ | ?????????????????????????????????????????????????? | | ???##????????????????????????????????????????????? | | ???# ######??????????????????????????????????????? | | ???# #??????????########????????????????????? | | ####!""" ##########?#* * #????????????????????? | | =!"%""" + #?#** **#????????????????????? | | [#=""" ######## #?# *#????????????????????? | | # #??????# #?# #????????????????????? | | + !#??????# #?##" "###????????????????????? | | ####+###??????# #?# T#?????????????????????? | | #?# ######### #?# ##?????????????????????? | | #?# #?####;###### #?????????????? | | "# #?# ### #???# % #?????????????? | | ## #### ##?# /!##### ##### #?????????????? | | # ### #??# % = ##????????????????????? | | + #??# ########## #????????????????????? | | # ### #??# #??####?? * ##???????????????????? | | ## ####+#?? #??#"""?## %! #???????????????????? | | ## # #?####??#"R"?? = # #???????????????????? | | ?# # #????####" "### [= #???????????????????? | | ?#=# +????# T % ##??????????????????? | | ##%# #????# ]% #??????????????????? | | + #????# * g ##?????????????????? | | #### #????# !! =% m #?????????????????? | | ???# ###### ! """ l% #??????????????????? | | ???# + ## """ @] #???????????????????? | | ???# # ## """ #??????????????????? | | ######### ## * # #??????????????????? | | ########## # ####??????????????????? | | ?#### #????????### k#?????????????????????? | | ????# #??????????# #?????????????????????? | | ????# #??????????# #?????????????????????? | | ????# #######??????????###u#?????????????????????? | | ????# #??????????????????# #?????????????????????? | | ????# #??????????????????? #?????????????????????? | | ????# #??????????????????? ?????????????????????? | | ????# ######??????????????##?????????????????????? | | ????# ##"""#?????????????????????????????????????? | | ????# ##"G"#?????????????????????????????????????? | | +#### ##" "###???????????????????????????????????? | | # ####????????????????????????????????? | | % !=# """"["""#????????????????????????????????? | | # """" R"#????????????????????????????????? | | ^ =%+ =""" """#????????????????????????????????? | | #["""" ####????????????????????????????????? | | ^ #! =* #???????????????????????????????????? | | ########???????????????????????????????????? | | #??????????????????????????????????????????? | | #??????????????????????????????????????????? | | #??????????????????????????????????????????? | +----------------------------------------------------+ Best States ------------- Heat Dissipation 45 Energy Generation 14 Energy Capacity 280 Matter Stores 300 Matter Capacity 300 Sight Range 16 Terrain Scan Range 16 Terrain Scan Density 85 Armor Coverage 375 Weapon Shielding 33 Evasion (%) 50 Targeting Accuracy 5 Recoil Reduction 2 Salvage Targeting 1 Offensive Hacking 30 Item Schematics ----------------- Magnetic Acceleration Cannon | -8/Storage | Hacked Robot Schematics ------------------ None Fabricated ------------ Nothing Alien Tech Used ----------------- None Achievements -------------- None Challenges ------------ None Game ------ Seed ArcMultitargetingSteel Manual? 0 Play Time 00:38:17 Cumulative 59.3 hours Start 2024.08.05 @ 14:06:46 End 2024.08.05 @ 14:42:16 Sessions 1 Manual Loads 0 Difficulty Rogue Special Mode None Game No. 57 Rogue 57 Adventurer 0 Explorer 0 Win Type - Total 0 Types 0/0/0/0/0/0/0/0/0 Lore% 31 Gallery% 44 Achievement% 30 Wizard Run 0 Options --------- Layout 2 ASCII 0 Keyboard 0 Movement Arrows Keybinds 0 Fullscreen 1 Font 16/Terminus Map View 55x47 Zoom Use 0% Tactical HUD 0 Map Filters NONE Filters NONE Steam 1 RUN: a17e1f11-0b76-45b6-8ffb-99e3d8876373